[Event "EYCC Open U8 2018"]
[Site "Riga"]
[Date "2018.08.21"]
[Round "2"]
[White "Zheng, Harry Z"]
[Black "Vassis, Michail"]
[Result "1/2-1/2"]
[ECO "B03"]
[WhiteElo "1530"]
[BlackElo "1218"]
[Annotator "NA RC"]
[PlyCount "224"]
[EventDate "2018.08.20"]
[EventType "swiss"]
[EventCountry "LAT"]
[SourceTitle "playchess.com"]
[Source "ChessBase"]
[SourceQuality "1"]
[TimeControl "40/5400+30:1800+30"]

1. e4 {[%emt 0:00:00]} Nf6 {[%emt 0:00:00]} 2. e5 {[%emt 0:00:00]} Nd5 {[%emt 0:00:00]} 3. d4 {[%emt 0:00:00]} Nc6 {[%emt 0:00:07]} 4. Nf3 {[%emt 0:02:18]} d6 {[%emt 0:06:55]} 5. Bb5 {[%emt 0:04:55]} a6 {[%emt 0:00:24]} 6. Ba4 Nb6 {[%emt 0:00:24]} 7. Bb3 {[%emt 0:03:57]} dxe5 {[%emt 0:00:16]} 8. Nxe5 {[%emt 0:04:21]} Nxe5 {[%emt 0:00:19]} 9. dxe5 {[%emt 0:00:12]} Qxd1+ {[%emt 0:00:09]} 10. Kxd1 {[%emt 0:00:06]} Bf5 {[%emt 0:00:22]} 11. Be3 {[%emt 0:01:51]} O-O-O+ {[%emt 0:00:28]} 12. Nd2 {[%emt 0:00:36]} Nd5 {[%emt 0:00:17]} 13. Re1 {[%emt 0:02:39]} e6 {[%emt 0:02:21]} 14. f3 {[%emt 0:01:44]} Nxe3+ {[%emt 0:00:13]} 15. Rxe3 {[%emt 0:00:10]} Bc5 {[%emt 0:00:13]} 16. Re2 {[%emt 0:01:01]} h5 {[%emt 0:02:32]} 17. Ke1 {[%emt 0:02:35]} g5 {[%emt 0:01:44]} 18. Ne4 {[%emt 0:03:56]} Be7 {[%emt 0:01:37]} 19. c3 {[%emt 0:03:40]} Rhg8 {[%emt 0:02:34]} 20. Bc2 {[%emt 0:05:55]} Rd5 {[%emt 0:01:49]} 21. Nf6 {[%emt 0:13:03]} Bxf6 {[%emt 0:00:24]} 22. exf6 {[%emt 0:00:18]} Bxc2 {[%emt 0:00:24]} 23. Rxc2 {[%emt 0:00:08]} Rg6 {[%emt 0:00:10]} 24. Rd1 {[%emt 0:03:43]} Rxd1+ {[%emt 0:00:41]} 25. Kxd1 {[%emt 0:00:07]} Rxf6 {[%emt 0:00:05]} 26. Rd2 {[%emt 0:00:09]} Rf5 {[%emt 0:00:16]} 27. Ke1 {[%emt 0:00:25]} c6 {[%emt 0:00:20]} 28. Kf2 {[%emt 0:02:32]} Ra5 {[%emt 0:00:29]} 29. a3 {[%emt 0:00:19]} Kc7 {[%emt 0:00:22]} 30. Kg3 {[%emt 0:00:26]} Ra4 {[%emt 0:00:38]} 31. Rd3 {[%emt 0:05:28]} f5 {[%emt 0:01:02]} 32. Rd2 {[%emt 0:03:08]} h4+ {[%emt 0:00:28]} 33. Kf2 {[%emt 0:01:48]} Ra5 {[%emt 0:00:10]} 34. g3 {[%emt 0:03:41]} hxg3+ {[%emt 0:00:32]} 35. Kxg3 {[%emt 0:00:53]} Re5 {[%emt 0:00:16]} 36. h4 {[%emt 0:04:42]} gxh4+ {[%emt 0:00:54]} 37. Kxh4 {[%emt 0:00:08]} Re3 {[%emt 0:00:06]} 38. f4 {[%emt 0:00:38]} Re1 {[%emt 0:03:10]} 39. Kg5 {[%emt 0:00:19]} Rf1 {[%emt 0:00:38]} 40. c4 {[%emt 0:00:00]} Rg1+ {[%emt 0:00:00]} 41. Kf6 {[%emt 0:02:53]} Rf1 {[%emt 0:02:10]} 42. Kxe6 {[%emt 0:01:08]} Rxf4 {[%emt 0:00:10]} 43. c5 {[%emt 0:01:16]} Rc4 {[%emt 0:00:29]} 44. b4 {[%emt 0:01:41]} Rc3 {[%emt 0:00:59]} 45. Kxf5 {[%emt 0:00:30]} Rxa3 {[%emt 0:00:09]} 46. Rd4 {[%emt 0:00:53]} a5 {[%emt 0:00:11]} 47. Ke4 {[%emt 0:02:18]} a4 {[%emt 0:00:23]} 48. Rd3 {[%emt 0:02:41]} Ra1 {[%emt 0:00:26]} 49. Kd4 {[%emt 0:02:23]} a3 {[%emt 0:00:44]} 50. Kc3 {[%emt 0:01:42]} a2 {[%emt 0:01:38]} 51. Kb2 {[%emt 0:00:08]} Rb1+ {[%emt 0:00:09]} 52. Kxa2 {[%emt 0:00:17]} Rxb4 {[%emt 0:00:06]} 53. Rc3 {[%emt 0:00:31]} Kd7 {[%emt 0:00:22]} 54. Rd3+ {[%emt 0:01:33]} Ke7 {[%emt 0:00:31]} 55. Re3+ {[%emt 0:01:49]} Kf6 {[%emt 0:00:33]} 56. Ka3 {[%emt 0:00:52]} Rc4 {[%emt 0:00:19]} 57. Rb3 {[%emt 0:00:14]} Rxc5 {[%emt 0:00:33]} 58. Rxb7 {[%emt 0:00:11]} Ke5 {[%emt 0:00:08]} 59. Kb4 {[%emt 0:00:57]} Rd5 {[%emt 0:00:33]} 60. Kc4 {[%emt 0:01:11]} Kd6 {[%emt 0:00:15]} 61. Rh7 {[%emt 0:01:44]} Rc5+ {[%emt 0:00:27]} 62. Kb4 {[%emt 0:00:13]} Rc1 {[%emt 0:00:25]} 63. Rh6+ {[%emt 0:00:13]} Kc7 {[%emt 0:00:11]} 64. Rh3 {[%emt 0:03:07]} Kb6 {[%emt 0:00:15]} 65. Rb3 {[%emt 0:02:15]} c5+ {[%emt 0:01:21]} 66. Ka3+ {[%emt 0:00:51]} Kc6 {[%emt 0:00:42]} 67. Kb2 {[%emt 0:00:36]} Rh1 {[%emt 0:00:35]} 68. Rg3 {[%emt 0:02:13]} Rh2+ {[%emt 0:00:20]} 69. Kc3 {[%emt 0:01:19]} Kb5 {[%emt 0:00:20]} 70. Rg4 {[%emt 0:01:16]} Rh3+ {[%emt 0:00:14]} 71. Kc2 {[%emt 0:01:23]} c4 {[%emt 0:00:13]} 72. Rg2 {[%emt 0:00:28]} Kb4 {[%emt 0:00:15]} 73. Kb2 {[%emt 0:02:03]} Rb3+ {[%emt 0:00:43]} 74. Kc2 {[%emt 0:01:42]} Ra3 {[%emt 0:01:23]} 75. Kb2 {[%emt 0:02:41]} c3+ {[%emt 0:00:11]} 76. Kb1 {[%emt 0:01:41]} Kb3 {[%emt 0:00:27]} 77. Rb2+ {[%emt 0:01:02]} Kc4 {[%emt 0:01:17]} 78. Rh2 {[%emt 0:00:28]} Kb4 {[%emt 0:01:17]} 79. Rg2 {[%emt 0:01:52]} Rb3+ {[%emt 0:00:18]} 80. Ka2 {[%emt 0:00:20]} Ra3+ {[%emt 0:01:08]} 81. Kb1 {[%emt 0:00:07]} Ra5 {[%emt 0:00:25]} 82. Rh2 {[%emt 0:00:47]} Rd5 {[%emt 0:00:23]} 83. Kc2 {[%emt 0:01:57]} Rd4 {[%emt 0:00:30]} 84. Rg2 {[%emt 0:00:19]} Kc4 {[%emt 0:00:13]} 85. Rh2 {[%emt 0:00:09]} Kb4 {[%emt 0:00:36]} 86. Rg2 {[%emt 0:00:10]} Rh4 {[%emt 0:00:43]} 87. Rf2 {[%emt 0:00:12]} Kc4 {[%emt 0:00:18]} 88. Rg2 {[%emt 0:00:21]} Kd4 {[%emt 0:00:28]} 89. Rf2 {[%emt 0:00:11]} Rg4 {[%emt 0:01:27]} 90. Rh2 {[%emt 0:00:20]} Rf4 {[%emt 0:00:58]} 91. Rg2 {[%emt 0:00:08]} Re4 {[%emt 0:00:25]} 92. Rh2 {[%emt 0:00:08]} Re3 {[%emt 0:00:49]} 93. Rh4+ {[%emt 0:00:15]} Kd5 {[%emt 0:00:29]} 94. Rh5+ {[%emt 0:00:27]} Ke4 {[%emt 0:00:48]} 95. Rh4+ {[%emt 0:00:22]} Kd5 {[%emt 0:00:32]} 96. Rh5+ {[%emt 0:00:07]} Kc4 {[%emt 0:00:13]} 97. Rh4+ {[%emt 0:00:22]} Kb5 {[%emt 0:00:23]} 98. Rh5+ {[%emt 0:00:10]} Kb4 {[%emt 0:00:19]} 99. Rh4+ {[%emt 0:00:12]} Ka3 {[%emt 0:00:12]} 100. Rc4 {[%emt 0:00:21]} Re1 {[%emt 0:01:05]} 101. Rxc3+ {[%emt 0:00:41]} Kb4 {[%emt 0:00:08]} 102. Rb3+ {[%emt 0:00:19]} Ka4 {[%emt 0:00:13]} 103. Rb1 {[%emt 0:00:41]} Re2+ {[%emt 0:00:12]} 104. Kd3 {[%emt 0:00:07]} Rh2 {[%emt 0:00:12]} 105. Kc4 {[%emt 0:00:09]} Rh4+ {[%emt 0:00:10]} 106. Kc3 {[%emt 0:00:11]} Rg4 {[%emt 0:00:10]} 107. Rb8 {[%emt 0:00:17]} Rg7 {[%emt 0:00:19]} 108. Kc4 {[%emt 0:00:10]} Rc7+ {[%emt 0:00:11]} 109. Kd5 {[%emt 0:00:17]} Ka5 {[%emt 0:00:35]} 110. Kd6 {[%emt 0:00:08]} Rc2 {[%emt 0:00:20]} 111. Kd5 {[%emt 0:00:09]} Rd2+ {[%emt 0:00:13]} 112. Kc4 {[%emt 0:00:19]} Rc2+ {[%emt 0:00:16]} 1/2-1/2

[Event "EYCC Open U8 2018"]
[Site "Riga"]
[Date "2018.08.21"]
[Round "2"]
[White "Akulov, Yaroslav"]
[Black "Hajdu, Marton Abris"]
[Result "0-1"]
[ECO "B30"]
[WhiteElo "1242"]
[BlackElo "1694"]
[Annotator "NA RC"]
[PlyCount "50"]
[EventDate "2018.08.20"]
[EventType "swiss"]
[EventCountry "LAT"]
[SourceTitle "playchess.com"]
[Source "ChessBase"]
[SourceQuality "1"]
[TimeControl "40/5400+30:1800+30"]

1. e4 {[%emt 0:00:00]} c5 {[%emt 0:00:00]} 2. Nf3 {[%emt 0:00:00]} Nc6 {[%emt 0:00:01]} 3. c3 {[%emt 0:00:45]} d5 {[%emt 0:00:29]} 4. exd5 {[%emt 0:01:13]} Qxd5 {[%emt 0:00:10]} 5. d4 {[%emt 0:01:07]} cxd4 {[%emt 0:01:11]} 6. cxd4 {[%emt 0:00:21]} e5 {[%emt 0:00:13]} 7. Nc3 {[%emt 0:00:39]} Bb4 {[%emt 0:04:17]} 8. Be2 {[%emt 0:01:34]} exd4 {[%emt 0:01:28]} 9. O-O Qd8 10. Ne4 {[%emt 0:05:11]} Nge7 {[%emt 0:02:03]} 11. Qb3 {[%emt 0:00:37]} Bf5 {[%emt 0:03:23]} 12. Neg5 {[%emt 0:00:22]} O-O {[%emt 0:01:20]} 13. Bc4 {[%emt 0:00:11]} Bg6 {[%emt 0:03:08]} 14. a3 {[%emt 0:02:22]} Ba5 {[%emt 0:07:48]} 15. Rd1 {[%emt 0:03:39]} Bb6 {[%emt 0:03:53]} 16. Be3 {[%emt 0:00:33]} Na5 {[%emt 0:01:19]} 17. Qb4 {[%emt 0:03:12]} Nec6 {[%emt 0:01:59]} 18. Qb5 {[%emt 0:04:02]} Qc7 {[%emt 0:20:52]} 19. b4 {[%emt 0:01:02]} Nxc4 {[%emt 0:05:17]} 20. Qxc4 {[%emt 0:03:40]} dxe3 {[%emt 0:01:29]} 21. Rac1 {[%emt 0:04:32]} exf2+ {[%emt 0:00:15]} 22. Kf1 {[%emt 0:01:46]} Rad8 {[%emt 0:02:36]} 23. Rxd8 {[%emt 0:02:16]} Rxd8 {[%emt 0:00:08]} 24. b5 {[%emt 0:06:31]} Na5 {[%emt 0:04:33]} 25. Qxc7 {[%emt 0:00:47]} Bd3# {[%emt 0:00:08]} 0-1

[Event "EYCC Open U8 2018"]
[Site "Riga"]
[Date "2018.08.21"]
[Round "2"]
[White "La Barbera, Manfredi"]
[Black "Golovchenko, Bogdan"]
[Result "0-1"]
[ECO "B31"]
[WhiteElo "1212"]
[BlackElo "1560"]
[Annotator "NA RC"]
[PlyCount "80"]
[EventDate "2018.08.20"]
[EventType "swiss"]
[EventCountry "LAT"]
[SourceTitle "playchess.com"]
[Source "ChessBase"]
[SourceQuality "1"]
[TimeControl "40/5400+30:1800+30"]

1. e4 {[%emt 0:00:00]} c5 {[%emt 0:00:00]} 2. Nf3 {[%emt 0:00:00]} Nc6 {[%emt 0:00:00]} 3. Bb5 {[%emt 0:00:00]} g6 {[%emt 0:00:00]} 4. c3 {[%emt 0:00:12]} Bg7 {[%emt 0:00:13]} 5. O-O {[%emt 0:00:51]} d6 6. d4 cxd4 {[%emt 0:01:02]} 7. cxd4 {[%emt 0:00:55]} Bd7 {[%emt 0:00:09]} 8. Nc3 {[%emt 0:01:05]} Nf6 {[%emt 0:01:15]} 9. h3 {[%emt 0:02:06]} a6 {[%emt 0:03:17]} 10. Bc4 {[%emt 0:02:48]} b5 {[%emt 0:02:12]} 11. Bb3 {[%emt 0:02:59]} b4 {[%emt 0:01:55]} 12. e5 {[%emt 0:01:25]} dxe5 {[%emt 0:00:51]} 13. dxe5 {[%emt 0:00:55]} bxc3 {[%emt 0:00:19]} 14. exf6 {[%emt 0:02:32]} Bxf6 {[%emt 0:00:07]} 15. bxc3 {[%emt 0:09:49]} Bg7 {[%emt 0:05:25]} 16. Bd2 {[%emt 0:02:52]} O-O {[%emt 0:00:56]} 17. Rb1 {[%emt 0:03:37]} Rc8 {[%emt 0:04:04]} 18. Rc1 {[%emt 0:03:10]} Na7 {[%emt 0:10:09]} 19. Nd4 {[%emt 0:02:44]} e5 {[%emt 0:00:43]} 20. Ne2 {[%emt 0:02:34]} a5 {[%emt 0:03:30]} 21. a4 {[%emt 0:02:12]} Qc7 {[%emt 0:02:13]} 22. Re1 {[%emt 0:02:04]} Rfd8 {[%emt 0:01:01]} 23. Qc2 {[%emt 0:02:13]} Bf5 {[%emt 0:03:48]} 24. Qa2 {[%emt 0:00:43]} Rd7 {[%emt 0:01:33]} 25. Ng3 {[%emt 0:04:25]} Bd3 {[%emt 0:02:50]} 26. Rcd1 {[%emt 0:04:04]} Rcd8 {[%emt 0:03:21]} 27. f3 {[%emt 0:04:51]} Rb8 {[%emt 0:04:49]} 28. Re3 {[%emt 0:04:24]} Qb6 {[%emt 0:01:51]} 29. Bc4 {[%emt 0:05:21]} Bxc4 {[%emt 0:01:05]} 30. Qxc4 {[%emt 0:00:10]} Bh6 {[%emt 0:00:13]} 31. Nf1 {[%emt 0:01:21]} Rxd2 {[%emt 0:00:36]} 32. Rxd2 {[%emt 0:01:30]} Bxe3+ {[%emt 0:00:05]} 33. Nxe3 {[%emt 0:00:15]} Qxe3+ {[%emt 0:00:05]} 34. Rf2 {[%emt 0:00:25]} Rb1+ {[%emt 0:00:04]} 35. Kh2 {[%emt 0:00:51]} Qxf2 {[%emt 0:00:09]} 36. Qc7 {[%emt 0:02:06]} Rb2 {[%emt 0:04:17]} 37. Qd8+ {[%emt 0:00:31]} Kg7 {[%emt 0:00:04]} 38. Qg5 {[%emt 0:00:55]} f6 {[%emt 0:00:14]} 39. Qg4 {[%emt 0:00:38]} Rd2 {[%emt 0:00:18]} 40. h4 {[%emt 0:00:00]} h5 {[%emt 0:00:00]} 0-1

[Event "EYCC Open U8 2018"]
[Site "Riga"]
[Date "2018.08.22"]
[Round "3"]
[White "Hajdu, Marton Abris"]
[Black "Gordeev, Denis"]
[Result "0-1"]
[ECO "B40"]
[WhiteElo "1694"]
[BlackElo "1333"]
[Annotator "NA"]
[PlyCount "61"]
[EventDate "2018.08.20"]
[EventType "swiss"]
[EventCountry "LAT"]
[SourceTitle "playchess.com"]
[Source "ChessBase"]
[SourceQuality "1"]
[TimeControl "40/5400+30:1800+30"]

1. e4 c5 {[%emt 0:00:00]} 2. Nf3 {[%emt 0:00:00]} e6 {[%emt 0:00:00]} 3. d4 {[%emt 0:00:00]} cxd4 {[%emt 0:00:03]} 4. Nxd4 {[%emt 0:00:00]} Nf6 {[%emt 0:00:30]} 5. Bd3 {[%emt 0:00:48]} Nc6 {[%emt 0:01:23]} 6. Be3 {[%emt 0:05:20]} d5 7. Nxc6 {[%emt 0:10:16]} bxc6 {[%emt 0:03:30]} 8. e5 {[%emt 0:00:13]} Nd7 {[%emt 0:00:16]} 9. f4 {[%emt 0:08:02]} Be7 {[%emt 0:02:08]} 10. Qg4 {[%emt 0:05:10]} O-O {[%emt 0:03:53]} 11. h4 {[%emt 0:03:14]} Nc5 {[%emt 0:05:07]} 12. Bxc5 {[%emt 0:04:10]} Bxc5 {[%emt 0:00:10]} 13. Qh5 {[%emt 0:03:19]} g6 {[%emt 0:02:08]} 14. Qf3 {[%emt 0:04:15]} Qb6 {[%emt 0:01:26]} 15. b3 {[%emt 0:03:45]} Ba6 {[%emt 0:03:08]} 16. h5 {[%emt 0:02:22]} Bxd3 {[%emt 0:01:10]} 17. Qxd3 {[%emt 0:04:39]} Qb4+ {[%emt 0:02:14]} 18. Qd2 {[%emt 0:08:41]} Qe4+ {[%emt 0:01:19]} 19. Kd1 {[%emt 0:03:40]} Be3 {[%emt 0:00:50]} 20. Nc3 {[%emt 0:01:12]} Qxf4 {[%emt 0:02:00]} 21. Qe1 {[%emt 0:06:03]} d4 {[%emt 0:06:04]} 22. hxg6 {[%emt 0:00:27]} fxg6 {[%emt 0:05:34]} 23. Ne2 {[%emt 0:00:27]} Qxe5 {[%emt 0:00:22]} 24. Qh4 {[%emt 0:00:27]} Qg7 {[%emt 0:00:41]} 25. Ng3 {[%emt 0:00:49]} d3 {[%emt 0:00:49]} 26. c3 {[%emt 0:00:21]} Rf7 {[%emt 0:01:28]} 27. Qe4 {[%emt 0:00:31]} Qxc3 {[%emt 0:03:05]} 28. Qxe3 {[%emt 0:03:22]} Qxa1+ {[%emt 0:01:46]} 29. Kd2 {[%emt 0:01:40]} Qxa2+ {[%emt 0:00:59]} 30. Ke1 {[%emt 0:00:35]} Qxb3 {[%emt 0:01:15]} 31. Nh5 {[%emt 0:00:30]} 0-1

[Event "EYCC Open U8 2018"]
[Site "Riga"]
[Date "2018.08.22"]
[Round "3"]
[White "Golovchenko, Bogdan"]
[Black "Uskov, Artem"]
[Result "0-1"]
[ECO "C52"]
[WhiteElo "1560"]
[BlackElo "1320"]
[Annotator "NA"]
[PlyCount "90"]
[EventDate "2018.08.20"]
[EventType "swiss"]
[EventCountry "LAT"]
[SourceTitle "playchess.com"]
[Source "ChessBase"]
[SourceQuality "1"]
[TimeControl "40/5400+30:1800+30"]

1. e4 {[%emt 0:00:00]} e5 {[%emt 0:00:00]} 2. Nf3 {[%emt 0:00:00]} Nc6 {[%emt 0:00:13]} 3. Bc4 {[%emt 0:00:00]} Bc5 {[%emt 0:00:06]} 4. b4 {[%emt 0:00:00]} Bxb4 {[%emt 0:00:57]} 5. c3 {[%emt 0:00:00]} Ba5 {[%emt 0:01:20]} 6. d4 {[%emt 0:00:04]} exd4 {[%emt 0:00:57]} 7. O-O {[%emt 0:00:07]} Nge7 {[%emt 0:02:27]} 8. Ng5 {[%emt 0:00:52]} Ne5 {[%emt 0:06:54]} 9. Bb3 {[%emt 0:00:07]} d5 {[%emt 0:17:37]} 10. cxd4 {[%emt 0:01:58]} Nc4 {[%emt 0:04:57]} 11. Bxc4 {[%emt 0:00:07]} dxc4 {[%emt 0:00:06]} 12. Qa4+ {[%emt 0:00:05]} c6 {[%emt 0:00:45]} 13. Qxc4 {[%emt 0:04:12]} O-O {[%emt 0:00:46]} 14. f4 {[%emt 0:04:36]} b5 {[%emt 0:00:28]} 15. Qd3 {[%emt 0:00:42]} Bb6 {[%emt 0:00:08]} 16. Bb2 {[%emt 0:01:56]} h6 {[%emt 0:00:52]} 17. Nf3 {[%emt 0:00:08]} f5 {[%emt 0:00:26]} 18. e5 {[%emt 0:03:08]} Be6 {[%emt 0:00:23]} 19. Nbd2 {[%emt 0:02:03]} Nd5 {[%emt 0:01:30]} 20. Ne1 {[%emt 0:03:39]} a6 {[%emt 0:00:39]} 21. Rc1 {[%emt 0:02:43]} Rc8 {[%emt 0:00:14]} 22. a4 {[%emt 0:03:18]} Nb4 {[%emt 0:02:20]} 23. Qe3 {[%emt 0:01:22]} Nd5 {[%emt 0:00:17]} 24. Qf2 {[%emt 0:01:21]} Nb4 {[%emt 0:01:12]} 25. Kh1 {[%emt 0:05:10]} Re8 {[%emt 0:00:37]} 26. Nc2 {[%emt 0:05:57]} Nd3 {[%emt 0:00:09]} 27. Qe3 {[%emt 0:01:24]} Nxb2 {[%emt 0:00:57]} 28. axb5 {[%emt 0:02:21]} cxb5 {[%emt 0:00:35]} 29. h3 {[%emt 0:01:48]} Nc4 {[%emt 0:00:44]} 30. Nxc4 {[%emt 0:00:09]} Rxc4 {[%emt 0:00:07]} 31. Rfd1 {[%emt 0:01:03]} Qd7 {[%emt 0:00:46]} 32. Qd3 {[%emt 0:00:33]} Bd5 {[%emt 0:00:23]} 33. Qa3 {[%emt 0:01:51]} Bb7 {[%emt 0:03:38]} 34. Qd3 {[%emt 0:00:51]} Be4 {[%emt 0:00:11]} 35. Qb3 {[%emt 0:00:20]} Kh7 {[%emt 0:00:26]} 36. d5 {[%emt 0:01:01]} Rec8 {[%emt 0:00:09]} 37. d6 {[%emt 0:00:55]} Rxc2 {[%emt 0:01:10]} 38. e6 {[%emt 0:00:06]} Rxg2 {[%emt 0:01:56]} 39. Qb4 {[%emt 0:05:10]} Rxc1 {[%emt 0:00:14]} 40. Rxc1 {[%emt 0:00:00]} Qxd6 {[%emt 0:00:00]} 41. Qxe4 {[%emt 0:02:41]} fxe4 {[%emt 0:00:24]} 42. Kxg2 {[%emt 0:00:05]} Qxe6 {[%emt 0:00:14]} 43. f5 {[%emt 0:00:05]} Qxf5 {[%emt 0:00:05]} 44. Rc3 {[%emt 0:00:28]} Qf2+ {[%emt 0:00:11]} 45. Kh1 {[%emt 0:00:04]} Qg1# {[%emt 0:00:07]} 0-1

[Event "EYCC Open U8 2018"]
[Site "Riga"]
[Date "2018.08.22"]
[Round "3"]
[White "Yonal, Timur"]
[Black "Derbenev, Arseniy"]
[Result "1-0"]
[ECO "C00"]
[WhiteElo "1446"]
[BlackElo "1307"]
[Annotator "NA"]
[PlyCount "59"]
[EventDate "2018.08.20"]
[EventType "swiss"]
[EventCountry "LAT"]
[SourceTitle "playchess.com"]
[Source "ChessBase"]
[SourceQuality "1"]
[TimeControl "40/5400+30:1800+30"]

1. e4 {[%emt 0:00:00]} e6 {[%emt 0:00:00]} 2. d3 {[%emt 0:00:00]} d5 {[%emt 0:00:00]} 3. Nd2 {[%emt 0:00:05]} Nc6 {[%emt 0:00:09]} 4. g3 {[%emt 0:00:16]} Nf6 {[%emt 0:02:53]} 5. Bg2 {[%emt 0:01:07]} Be7 {[%emt 0:06:19]} 6. Ne2 {[%emt 0:02:20]} O-O {[%emt 0:00:20]} 7. O-O {[%emt 0:00:08]} d4 {[%emt 0:05:48]} 8. Nb3 {[%emt 0:01:27]} e5 {[%emt 0:02:49]} 9. f4 {[%emt 0:00:10]} Bd6 {[%emt 0:10:35]} 10. f5 {[%emt 0:01:22]} Be7 {[%emt 0:04:58]} 11. h3 {[%emt 0:00:52]} Nd7 12. Kh2 {[%emt 0:01:09]} Nb6 {[%emt 0:02:48]} 13. Bf3 {[%emt 0:01:27]} f6 {[%emt 0:01:45]} 14. h4 {[%emt 0:00:40]} Bd7 {[%emt 0:00:52]} 15. h5 {[%emt 0:00:29]} h6 {[%emt 0:00:23]} 16. Ng1 {[%emt 0:00:59]} Bd6 {[%emt 0:03:04]} 17. Bg4 {[%emt 0:01:36]} Ne7 {[%emt 0:00:27]} 18. Nf3 {[%emt 0:00:12]} c5 {[%emt 0:02:22]} 19. Nh4 {[%emt 0:00:51]} c4 {[%emt 0:00:36]} 20. Nd2 {[%emt 0:00:07]} cxd3 {[%emt 0:01:40]} 21. cxd3 {[%emt 0:00:42]} Kh8 {[%emt 0:04:56]} 22. Ng6+ {[%emt 0:00:46]} Nxg6 {[%emt 0:00:15]} 23. hxg6 {[%emt 0:00:06]} Rc8 {[%emt 0:01:02]} 24. Nb3 {[%emt 0:01:25]} Na8 {[%emt 0:02:03]} 25. Kg2 {[%emt 0:00:44]} a5 {[%emt 0:00:35]} 26. Rh1 {[%emt 0:01:27]} Rg8 {[%emt 0:01:42]} 27. Bxh6 {[%emt 0:01:25]} gxh6 {[%emt 0:00:14]} 28. Qd2 {[%emt 0:00:04]} Rxg6 {[%emt 0:01:34]} 29. fxg6 {[%emt 0:00:22]} Kg8 {[%emt 0:00:28]} 30. Qxh6 {[%emt 0:00:26]} 1-0